[Event "*** Titled Tuesday 3|2 Blitz (Late)"]
[Site "Chess.com"]
[Date "2016.12.06"]
[Round "7"]
[White "viditchess"]
[Black "wonderfultime"]
[Result "1/2-1/2"]
[WhiteElo "2617"]
[BlackElo "2679"]
[TimeControl "180+2"]
[EndTime "18:26:28 PST"]
[Termination "Game drawn by agreement"]

1. d4 {[%clk 0:03:02]} 1... d5 {[%clk 0:02:59.1]} 2. c4 {[%clk 0:03:01.8]} 2...
c6 {[%clk 0:03:00]} 3. Nf3 {[%clk 0:03:03.1]} 3... Nf6 {[%clk 0:03:01.3]} 4. e3
{[%clk 0:03:04.7]} 4... Bf5 {[%clk 0:03:02.1]} 5. Nc3 {[%clk 0:03:05.6]} 5... e6
{[%clk 0:03:02.8]} 6. Nh4 {[%clk 0:03:06.9]} 6... Be4 {[%clk 0:03:04.2]} 7. f3
{[%clk 0:03:07.9]} 7... Bg6 {[%clk 0:03:05.4]} 8. Qb3 {[%clk 0:03:09.3]} 8...
Qc7 {[%clk 0:03:06.8]} 9. Bd2 {[%clk 0:03:09.9]} 9... Be7 {[%clk 0:03:08.3]} 10.
Nxg6 {[%clk 0:03:09.9]} 10... hxg6 {[%clk 0:03:08.9]} 11. O-O-O {[%clk
0:03:11.8]} 11... dxc4 {[%clk 0:02:55.5]} 12. Bxc4 {[%clk 0:03:13.7]} 12... b5
{[%clk 0:02:56.4]} 13. Be2 {[%clk 0:03:14]} 13... a6 {[%clk 0:02:57.5]} 14. Ne4
{[%clk 0:03:14.7]} 14... Nbd7 {[%clk 0:02:55]} 15. Kb1 {[%clk 0:03:13.6]} 15...
Nxe4 {[%clk 0:02:52.8]} 16. fxe4 {[%clk 0:03:14.8]} 16... c5 {[%clk 0:02:53.3]}
17. Qc2 {[%clk 0:02:46.9]} 17... Rxh2 {[%clk 0:02:44]} 18. e5 {[%clk 0:02:44.7]}
18... Rxh1 {[%clk 0:02:26.3]} 19. Rxh1 {[%clk 0:02:46.6]} 19... Rc8 {[%clk
0:02:23.3]} 20. Rh8+ {[%clk 0:02:37]} 20... Bf8 {[%clk 0:02:15.2]} 21. Bg4
{[%clk 0:02:20.3]} 21... cxd4 {[%clk 0:01:59.7]} 22. Qxc7 {[%clk 0:02:20.5]}
22... Rxc7 {[%clk 0:02:00.6]} 23. exd4 {[%clk 0:02:22.4]} 23... Rc4 {[%clk
0:01:58.7]} 24. Bc3 {[%clk 0:02:20.8]} 24... b4 {[%clk 0:01:21]} 25. Be2 {[%clk
0:02:21.3]} 25... Rc6 {[%clk 0:01:22.3]} 26. Bxb4 {[%clk 0:02:21.7]} 26... f6
{[%clk 0:01:21.3]} 27. exf6 {[%clk 0:01:48.2]} 27... gxf6 {[%clk 0:01:21.1]} 28.
Bf3 {[%clk 0:01:22.6]} 28... Rc7 {[%clk 0:00:48.7]} 29. d5 {[%clk 0:01:13.8]}
29... e5 {[%clk 0:00:26.7]} 30. Bxf8 {[%clk 0:01:09.9]} 30... Nxf8 {[%clk
0:00:27.5]} 31. d6 {[%clk 0:01:11.3]} 31... Rc8 {[%clk 0:00:21.9]} 32. Bb7
{[%clk 0:01:05.5]} 32... Rd8 {[%clk 0:00:22.9]} 33. Bxa6 {[%clk 0:00:35.6]}
33... Rxd6 {[%clk 0:00:23.9]} 34. Bb5+ {[%clk 0:00:37.1]} 34... Ke7 {[%clk
0:00:25.5]} 35. a4 {[%clk 0:00:38.3]} 35... e4 {[%clk 0:00:26.8]} 36. Kc1 {[%clk
0:00:30.9]} 36... f5 {[%clk 0:00:26.9]} 37. Bc4 {[%clk 0:00:21.1]} 37... Nd7
{[%clk 0:00:17.6]} 38. a5 {[%clk 0:00:22.3]} 38... Ne5 {[%clk 0:00:15.1]} 39.
Be2 {[%clk 0:00:23.3]} 39... f4 {[%clk 0:00:15.9]} 40. a6 {[%clk 0:00:23.1]}
40... f3 {[%clk 0:00:16.6]} 41. gxf3 {[%clk 0:00:22.3]} 41... exf3 {[%clk
0:00:18]} 42. Bf1 {[%clk 0:00:22.1]} 42... Nc6 {[%clk 0:00:08]} 43. b4 {[%clk
0:00:15.9]} 43... Re6 {[%clk 0:00:05.2]} 44. Kd2 {[%clk 0:00:08.8]} 44... Rd6+
{[%clk 0:00:05.4]} 45. Kc3 {[%clk 0:00:07.7]} 45... Rd1 {[%clk 0:00:06.2]} 46.
Bb5 {[%clk 0:00:05.6]} 46... f2 {[%clk 0:00:06.9]} 47. a7 {[%clk 0:00:05.8]}
47... Nxa7 {[%clk 0:00:06.6]} 48. Rh7+ {[%clk 0:00:06.8]} 48... Kd8 {[%clk
0:00:05.9]} 49. Rxa7 {[%clk 0:00:08.7]} 49... f1=Q {[%clk 0:00:07.3]} 50. Bxf1
{[%clk 0:00:10.2]} 50... Rxf1 {[%clk 0:00:09.2]} 51. Rg7 {[%clk 0:00:11.7]}
51... Rf6 {[%clk 0:00:09.9]} 52. b5 {[%clk 0:00:13.3]} 52... Kc8 {[%clk
0:00:10.8]} 53. Kb4 {[%clk 0:00:15.2]} 53... Kb8 {[%clk 0:00:12.2]} 54. Ka5
{[%clk 0:00:17.1]} 54... Re6 {[%clk 0:00:12.4]} 55. b6 {[%clk 0:00:18.5]} 55...
Re1 {[%clk 0:00:13.1]} 56. Rxg6 {[%clk 0:00:19]} 56... Ra1+ {[%clk 0:00:14]} 57.
Kb5 {[%clk 0:00:20.7]} 57... Rb1+ {[%clk 0:00:15.5]} 58. Kc6 {[%clk 0:00:22.5]}
58... Rc1+ {[%clk 0:00:16.9]} 1/2-1/2

[Event "*** Titled Tuesday 3|2 Blitz (Late)"]
[Site "Chess.com"]
[Date "2016.12.06"]
[Round "7"]
[White "FearlessKing64"]
[Black "nonsopolo1"]
[Result "0-1"]
[WhiteElo "2004"]
[BlackElo "2179"]
[TimeControl "180+2"]
[EndTime "18:26:37 PST"]
[Termination "nonsopolo1 won by resignation"]

1. e4 {[%clk 0:03:02]} 1... c5 {[%clk 0:02:58.3]} 2. Nf3 {[%clk 0:03:03.1]} 2...
d6 {[%clk 0:02:57.1]} 3. d4 {[%clk 0:03:03.9]} 3... cxd4 {[%clk 0:02:57.8]} 4.
Nxd4 {[%clk 0:03:05.8]} 4... Nf6 {[%clk 0:02:58.4]} 5. Nc3 {[%clk 0:03:06.7]}
5... g6 {[%clk 0:02:59.1]} 6. Be3 {[%clk 0:03:06.4]} 6... Bg7 {[%clk 0:03:00]}
7. f3 {[%clk 0:03:08]} 7... O-O {[%clk 0:03:00.9]} 8. Qd2 {[%clk 0:03:09.5]}
8... Nc6 {[%clk 0:03:01.8]} 9. O-O-O {[%clk 0:03:10.1]} 9... Nxd4 {[%clk
0:03:01.4]} 10. Bxd4 {[%clk 0:03:08.5]} 10... Be6 {[%clk 0:03:02.1]} 11. Kb1
{[%clk 0:03:08]} 11... Qc7 {[%clk 0:03:02.8]} 12. h4 {[%clk 0:03:03.1]} 12...
Rfc8 {[%clk 0:03:02.2]} 13. h5 {[%clk 0:02:55.3]} 13... Qa5 {[%clk 0:02:54.9]}
14. hxg6 {[%clk 0:02:46.3]} 14... fxg6 {[%clk 0:02:49.2]} 15. Nd5 {[%clk
0:02:25.4]} 15... Qxd2 {[%clk 0:02:47.7]} 16. Nxf6+ {[%clk 0:02:25.2]} 16...
Bxf6 {[%clk 0:02:47.6]} 17. Rxd2 {[%clk 0:02:26.7]} 17... Bxd4 {[%clk
0:02:42.2]} 18. Rxd4 {[%clk 0:02:27]} 18... Rc5 {[%clk 0:02:42.8]} 19. Bd3
{[%clk 0:02:09.9]} 19... Rac8 {[%clk 0:02:35.2]} 20. b3 {[%clk 0:02:04.2]} 20...
a5 {[%clk 0:02:25.6]} 21. a4 {[%clk 0:01:55.4]} 21... Kg7 {[%clk 0:02:14.1]} 22.
Rf1 {[%clk 0:01:48.1]} 22... Rg5 {[%clk 0:02:07.1]} 23. Rf2 {[%clk 0:01:46.6]}
23... Rf8 {[%clk 0:01:38.3]} 24. Bc4 {[%clk 0:01:37.3]} 24... Bc8 {[%clk
0:01:32]} 25. Kc1 {[%clk 0:01:14]} 25... Rh5 {[%clk 0:01:26.9]} 26. Kd2 {[%clk
0:01:12.7]} 26... Rh2 {[%clk 0:01:24.9]} 27. Rd5 {[%clk 0:01:06.5]} 27... Bh3
{[%clk 0:01:16.6]} 28. Bf1 {[%clk 0:01:01.1]} 28... b6 {[%clk 0:01:00.2]} 29.
Ke3 {[%clk 0:01:01.6]} 29... Be6 {[%clk 0:00:55.9]} 30. Rdd2 {[%clk 0:00:57.8]}
30... Rh5 {[%clk 0:00:53.3]} 31. g4 {[%clk 0:00:52.1]} 31... Rc5 {[%clk
0:00:49.5]} 32. Rg2 {[%clk 0:00:48.1]} 32... Kf6 {[%clk 0:00:45.5]} 33. f4
{[%clk 0:00:48.5]} 33... Bc8 {[%clk 0:00:38.2]} 34. c4 {[%clk 0:00:48.4]} 34...
Bb7 {[%clk 0:00:37.5]} 35. Rh2 {[%clk 0:00:46.2]} 35... Rf7 {[%clk 0:00:35.8]}
36. Bh3 {[%clk 0:00:42.2]} 36... g5 {[%clk 0:00:34]} 37. Rdf2 {[%clk 0:00:36.5]}
37... Kg7 {[%clk 0:00:25.8]} 38. Bg2 {[%clk 0:00:17.2]} 38... gxf4+ {[%clk
0:00:24.8]} 39. Rxf4 {[%clk 0:00:18.2]} 39... Rxf4 {[%clk 0:00:25.2]} 40. Kxf4
{[%clk 0:00:19.6]} 40... h6 {[%clk 0:00:23.4]} 41. Bf3 {[%clk 0:00:18.7]} 41...
Re5 {[%clk 0:00:23.7]} 42. Rd2 {[%clk 0:00:16.8]} 42... Kg6 {[%clk 0:00:24.2]}
43. Rh2 {[%clk 0:00:16.9]} 43... Re6 {[%clk 0:00:24.4]} 44. Ke3 {[%clk
0:00:14.5]} 44... Re5 {[%clk 0:00:23.5]} 45. Kd4 {[%clk 0:00:15.8]} 45... Kg7
{[%clk 0:00:23]} 46. Rh4 {[%clk 0:00:14.8]} 46... Bc8 {[%clk 0:00:24]} 47. Ke3
{[%clk 0:00:15]} 47... Bd7 {[%clk 0:00:24.3]} 48. Kf4 {[%clk 0:00:16.2]} 48...
Be6 {[%clk 0:00:25.2]} 49. Ke3 {[%clk 0:00:17.2]} 49... Bd7 {[%clk 0:00:26.2]}
50. Kd4 {[%clk 0:00:18.1]} 50... Kg6 {[%clk 0:00:27.2]} 51. Ke3 {[%clk
0:00:17.6]} 51... Be8 {[%clk 0:00:28.3]} 52. Kf4 {[%clk 0:00:17.9]} 52... Re6
{[%clk 0:00:28.8]} 53. Ke3 {[%clk 0:00:17]} 53... Kg5 {[%clk 0:00:28.8]} 54.
Rh5+ {[%clk 0:00:17]} 54... Bxh5 {[%clk 0:00:28.7]} 55. gxh5 {[%clk 0:00:17.9]}
55... Re5 {[%clk 0:00:28.1]} 56. Be2 {[%clk 0:00:15]} 56... Kh4 {[%clk
0:00:28.9]} 57. Kd4 {[%clk 0:00:14.9]} 57... Kg3 {[%clk 0:00:29.4]} 58. Ke3
{[%clk 0:00:14.9]} 58... Re6 {[%clk 0:00:29.3]} 59. Bf3 {[%clk 0:00:14.3]} 59...
Rf6 {[%clk 0:00:29.3]} 60. Be2 {[%clk 0:00:15.8]} 60... Rf2 {[%clk 0:00:25.3]}
61. Kd2 {[%clk 0:00:07.3]} 61... Kf4 {[%clk 0:00:25.8]} 62. Ke1 {[%clk
0:00:08.5]} 62... Ke3 {[%clk 0:00:25.3]} 0-1

[Event "*** Titled Tuesday 3|2 Blitz (Late)"]
[Site "Chess.com"]
[Date "2016.12.06"]
[Round "7"]
[White "hypert"]
[Black "Larax"]
[Result "1/2-1/2"]
[WhiteElo "2257"]
[BlackElo "1898"]
[TimeControl "180+2"]
[EndTime "18:27:31 PST"]
[Termination "Game drawn by agreement"]

1. e4 {[%clk 0:03:02]} 1... e5 {[%clk 0:03:00.2]} 2. Nf3 {[%clk 0:03:02.7]} 2...
Nc6 {[%clk 0:03:00.6]} 3. Bb5 {[%clk 0:03:04.4]} 3... a6 {[%clk 0:03:01.6]} 4.
Ba4 {[%clk 0:03:05.4]} 4... Nf6 {[%clk 0:03:03.1]} 5. O-O {[%clk 0:03:06.2]}
5... Be7 {[%clk 0:03:01.7]} 6. d3 {[%clk 0:03:06.9]} 6... b5 {[%clk 0:03:00]} 7.
Bb3 {[%clk 0:03:08]} 7... O-O {[%clk 0:02:59.2]} 8. Nc3 {[%clk 0:03:08.6]} 8...
d6 {[%clk 0:02:55.7]} 9. a3 {[%clk 0:03:09.3]} 9... Be6 {[%clk 0:02:57.2]} 10.
Bxe6 {[%clk 0:03:07.3]} 10... fxe6 {[%clk 0:02:58.8]} 11. d4 {[%clk 0:03:08.5]}
11... exd4 {[%clk 0:02:58.6]} 12. Nxd4 {[%clk 0:03:09]} 12... Nxd4 {[%clk
0:03:00.2]} 13. Qxd4 {[%clk 0:03:10.4]} 13... c5 {[%clk 0:02:47.9]} 14. Qd3
{[%clk 0:03:03.7]} 14... d5 {[%clk 0:02:46.1]} 15. Qh3 {[%clk 0:02:50.9]} 15...
Qd7 {[%clk 0:02:23.2]} 16. exd5 {[%clk 0:02:22]} 16... Nxd5 {[%clk 0:02:17.2]}
17. Nxd5 {[%clk 0:02:22.4]} 17... Qxd5 {[%clk 0:02:16.9]} 18. Be3 {[%clk
0:02:20.5]} 18... Bf6 {[%clk 0:02:17.9]} 19. c3 {[%clk 0:02:20.7]} 19... Rfd8
{[%clk 0:02:15.3]} 20. Rfe1 {[%clk 0:02:18.2]} 20... Qb3 {[%clk 0:02:11.7]} 21.
Rab1 {[%clk 0:02:06.1]} 21... Rac8 {[%clk 0:02:11.4]} 22. Qf3 {[%clk 0:01:56.5]}
22... Qd5 {[%clk 0:02:07.7]} 23. Qg4 {[%clk 0:01:54.8]} 23... Qf5 {[%clk
0:02:07.6]} 24. Qe2 {[%clk 0:01:52.2]} 24... Qd3 {[%clk 0:02:02.6]} 25. Kf1
{[%clk 0:01:38.5]} 25... c4 {[%clk 0:02:01.7]} 26. Red1 {[%clk 0:01:36.5]} 26...
Qxe2+ {[%clk 0:01:59.8]} 27. Kxe2 {[%clk 0:01:38.4]} 27... Kf7 {[%clk
0:01:58.1]} 28. Bb6 {[%clk 0:01:36.8]} 28... Rd5 {[%clk 0:01:38.4]} 29. Ba5
{[%clk 0:00:55.6]} 29... Rcc5 {[%clk 0:01:17.6]} 30. f4 {[%clk 0:00:50.7]} 30...
Rxd1 {[%clk 0:01:17.9]} 31. Rxd1 {[%clk 0:00:51.9]} 31... Rd5 {[%clk 0:01:19.5]}
32. Rxd5 {[%clk 0:00:51.3]} 32... exd5 {[%clk 0:01:20.7]} 33. Bb6 {[%clk
0:00:51.7]} 33... Ke6 {[%clk 0:01:16]} 34. g4 {[%clk 0:00:52.3]} 34... h5 {[%clk
0:01:06.8]} 35. h3 {[%clk 0:00:52.6]} 35... hxg4 {[%clk 0:01:07.8]} 36. hxg4
{[%clk 0:00:54.3]} 36... g6 {[%clk 0:01:04]} 37. Ke3 {[%clk 0:00:53.5]} 37...
Bh4 {[%clk 0:00:56]} 38. Bd4 {[%clk 0:00:46.2]} 38... Be7 {[%clk 0:00:52.5]} 39.
Kf3 {[%clk 0:00:42.9]} 39... Bd8 {[%clk 0:00:46.1]} 40. Ke2 {[%clk 0:00:37.8]}
40... Be7 {[%clk 0:00:46.4]} 41. Kd1 {[%clk 0:00:37.3]} 41... Bd6 {[%clk
0:00:47]} 42. Be3 {[%clk 0:00:36.1]} 42... d4 {[%clk 0:00:45.1]} 43. cxd4 {[%clk
0:00:28.9]} 43... Kd5 {[%clk 0:00:46.3]} 44. f5 {[%clk 0:00:29.5]} 44... gxf5
{[%clk 0:00:46.5]} 45. gxf5 {[%clk 0:00:27.3]} 45... Ke4 {[%clk 0:00:47.3]} 46.
Ke2 {[%clk 0:00:26.8]} 46... Kxf5 {[%clk 0:00:43.4]} 47. Kf3 {[%clk 0:00:28.1]}
47... a5 {[%clk 0:00:38.3]} 48. Bd2 {[%clk 0:00:27.8]} 48... b4 {[%clk
0:00:38.7]} 49. axb4 {[%clk 0:00:28.6]} 49... axb4 {[%clk 0:00:39.9]} 50. Be1
{[%clk 0:00:27.5]} 50... b3 {[%clk 0:00:39.7]} 51. Bc3 {[%clk 0:00:27.4]} 51...
Bf4 {[%clk 0:00:33.5]} 52. Be1 {[%clk 0:00:21]} 52... Bg5 {[%clk 0:00:24.2]} 53.
Ba5 {[%clk 0:00:20.4]} 53... Bf6 {[%clk 0:00:20.8]} 54. Bc3 {[%clk 0:00:21.2]}
54... Bg7 {[%clk 0:00:22.1]} 55. Ke3 {[%clk 0:00:21.5]} 55... Bh6+ {[%clk
0:00:22.6]} 56. Ke2 {[%clk 0:00:22.5]} 56... Ke4 {[%clk 0:00:23.2]} 57. Kd1
{[%clk 0:00:22.5]} 57... Bg7 {[%clk 0:00:22.6]} 58. Kc1 {[%clk 0:00:23.7]} 58...
Bxd4 {[%clk 0:00:23.6]} 59. Be1 {[%clk 0:00:24.7]} 59... Kd3 {[%clk 0:00:25.1]}
60. Kb1 {[%clk 0:00:24.9]} 60... Be5 {[%clk 0:00:19.2]} 61. Ba5 {[%clk
0:00:25.6]} 61... Bd4 {[%clk 0:00:18.5]} 62. Bb4 {[%clk 0:00:26.5]} 62... Bf6
{[%clk 0:00:19.6]} 63. Ba5 {[%clk 0:00:27.3]} 63... Bh8 {[%clk 0:00:19.6]} 64.
Bb4 {[%clk 0:00:28.3]} 64... Bg7 {[%clk 0:00:21.1]} 65. Ba5 {[%clk 0:00:29.4]}
65... Be5 {[%clk 0:00:22.7]} 66. Bb4 {[%clk 0:00:30.6]} 66... Bf4 {[%clk
0:00:19.3]} 67. Ba5 {[%clk 0:00:31.6]} 67... Bd2 {[%clk 0:00:20.4]} 68. Bd8
{[%clk 0:00:32.5]} 68... Be3 {[%clk 0:00:18.4]} 69. Ba5 {[%clk 0:00:32.6]} 69...
Bd4 {[%clk 0:00:19.2]} 70. Bb4 {[%clk 0:00:32.7]} 70... Be3 {[%clk 0:00:16.8]}
71. Ba5 {[%clk 0:00:33.5]} 71... Ke2 {[%clk 0:00:15.6]} 72. Bb4 {[%clk
0:00:34.1]} 72... Kd1 {[%clk 0:00:17.1]} 73. Ba5 {[%clk 0:00:32.2]} 73... Bd2
{[%clk 0:00:18]} 74. Bd8 {[%clk 0:00:32.7]} 74... Be3 {[%clk 0:00:18]} 75. Ba5
{[%clk 0:00:33.5]} 75... Bd4 {[%clk 0:00:17.5]} 76. Bb4 {[%clk 0:00:34.4]} 76...
Ke2 {[%clk 0:00:18.2]} 77. Ba5 {[%clk 0:00:35.3]} 77... Kd3 {[%clk 0:00:19.4]}
78. Bb4 {[%clk 0:00:35.8]} 78... Bb6 {[%clk 0:00:20.5]} 79. Be1 {[%clk
0:00:36.1]} 79... Bd4 {[%clk 0:00:13.7]} 80. Bb4 {[%clk 0:00:36.8]} 80... c3
{[%clk 0:00:15.1]} 81. bxc3 {[%clk 0:00:37]} 81... Bxc3 {[%clk 0:00:16.8]} 82.
Ba3 {[%clk 0:00:37.8]} 1/2-1/2

[Event "*** Titled Tuesday 3|2 Blitz (Late)"]
[Site "Chess.com"]
[Date "2016.12.06"]
[Round "7"]
[White "SwiftyMcBishop"]
[Black "Kawhi_Leonard2"]
[Result "1/2-1/2"]
[WhiteElo "2113"]
[BlackElo "2229"]
[TimeControl "180+2"]
[EndTime "18:28:58 PST"]
[Termination "Game drawn by repetition"]

1. e4 {[%clk 0:03:02]} 1... c5 {[%clk 0:03:00]} 2. Nf3 {[%clk 0:03:02.9]} 2...
d6 {[%clk 0:03:01.2]} 3. c3 {[%clk 0:03:04.1]} 3... Nf6 {[%clk 0:03:01.2]} 4. h3
{[%clk 0:03:05.5]} 4... Nc6 {[%clk 0:02:50.3]} 5. Bd3 {[%clk 0:03:06.7]} 5... g6
{[%clk 0:02:44.3]} 6. Bc2 {[%clk 0:03:07.7]} 6... Bg7 {[%clk 0:02:45.8]} 7. O-O
{[%clk 0:02:50]} 7... O-O {[%clk 0:02:45.7]} 8. d4 {[%clk 0:02:51]} 8... cxd4
{[%clk 0:02:43.2]} 9. cxd4 {[%clk 0:02:52.9]} 9... Nb4 {[%clk 0:02:44.3]} 10.
Nc3 {[%clk 0:02:50.9]} 10... Nxc2 {[%clk 0:02:44.6]} 11. Qxc2 {[%clk 0:02:52.8]}
11... b6 {[%clk 0:02:42.2]} 12. e5 {[%clk 0:02:52.3]} 12... Ne8 {[%clk
0:02:37.5]} 13. Bg5 {[%clk 0:02:51.4]} 13... Bb7 {[%clk 0:02:36.2]} 14. Rfe1
{[%clk 0:02:48]} 14... f6 {[%clk 0:02:34.4]} 15. Qb3+ {[%clk 0:02:37]} 15... Kh8
{[%clk 0:02:31.8]} 16. Bh4 {[%clk 0:02:35.6]} 16... Bxf3 {[%clk 0:02:30.6]} 17.
gxf3 {[%clk 0:02:36.6]} 17... fxe5 {[%clk 0:02:30.1]} 18. dxe5 {[%clk
0:02:37.4]} 18... Bxe5 {[%clk 0:02:30.9]} 19. Qe6 {[%clk 0:02:22]} 19... Nf6
{[%clk 0:02:26.2]} 20. Rad1 {[%clk 0:02:06.9]} 20... Qc7 {[%clk 0:01:30]} 21. f4
{[%clk 0:01:34]} 21... Bxc3 {[%clk 0:01:19.6]} 22. bxc3 {[%clk 0:01:33.8]} 22...
Rae8 {[%clk 0:01:15.4]} 23. Re3 {[%clk 0:01:18.8]} 23... Qc5 {[%clk 0:01:00.4]}
24. Rde1 {[%clk 0:01:03.7]} 24... Nd5 {[%clk 0:00:35.6]} 25. Rf3 {[%clk
0:00:39.2]} 25... Nxf4 {[%clk 0:00:28.2]} 26. Qd7 {[%clk 0:00:23]} 26... e5
{[%clk 0:00:18.9]} 27. Bf6+ {[%clk 0:00:19.2]} 27... Rxf6 {[%clk 0:00:20.1]} 28.
Qxe8+ {[%clk 0:00:20.6]} 28... Kg7 {[%clk 0:00:21.5]} 29. Qe7+ {[%clk
0:00:18.3]} 29... Rf7 {[%clk 0:00:22.6]} 30. Qh4 {[%clk 0:00:18.5]} 30... h6
{[%clk 0:00:20.4]} 31. Qg3 {[%clk 0:00:15.1]} 31... g5 {[%clk 0:00:20.7]} 32. h4
{[%clk 0:00:16.3]} 32... Kg6 {[%clk 0:00:16.7]} 33. hxg5 {[%clk 0:00:15.6]}
33... hxg5 {[%clk 0:00:18]} 34. Qg4 {[%clk 0:00:14.7]} 34... Rf6 {[%clk
0:00:10.1]} 35. Kh2 {[%clk 0:00:06.1]} 35... Qd5 {[%clk 0:00:08.5]} 36. Kg3
{[%clk 0:00:06.8]} 36... Nh5+ {[%clk 0:00:07.5]} 37. Kg2 {[%clk 0:00:07.9]}
37... Nf4+ {[%clk 0:00:06]} 38. Kg1 {[%clk 0:00:08.2]} 38... Qe6 {[%clk
0:00:05.1]} 39. Qxe6 {[%clk 0:00:07.6]} 39... Rxe6 {[%clk 0:00:06.2]} 40. Rfe3
{[%clk 0:00:08.2]} 40... Kf5 {[%clk 0:00:07.2]} 41. f3 {[%clk 0:00:07.7]} 41...
d5 {[%clk 0:00:06.7]} 42. Kf2 {[%clk 0:00:08.1]} 42... Kf6 {[%clk 0:00:05.5]}
43. Kg3 {[%clk 0:00:09.6]} 43... Kf5 {[%clk 0:00:06.1]} 44. Rc1 {[%clk
0:00:07.7]} 44... d4 {[%clk 0:00:07.3]} 45. cxd4 {[%clk 0:00:08.2]} 45... exd4
{[%clk 0:00:07.4]} 46. Rxe6 {[%clk 0:00:05.2]} 46... Nxe6 {[%clk 0:00:08.6]} 47.
Rd1 {[%clk 0:00:03.9]} 47... Ke5 {[%clk 0:00:08.8]} 48. Re1+ {[%clk 0:00:05]}
48... Kd5 {[%clk 0:00:09.9]} 49. Kg4 {[%clk 0:00:06.2]} 49... Kc4 {[%clk
0:00:10.5]} 50. Kf5 {[%clk 0:00:06.5]} 50... Nf4 {[%clk 0:00:10.6]} 51. Ke4
{[%clk 0:00:07.2]} 51... d3 {[%clk 0:00:10]} 52. Rc1+ {[%clk 0:00:07.9]} 52...
Kb4 {[%clk 0:00:11.2]} 53. Ke3 {[%clk 0:00:05.9]} 53... a5 {[%clk 0:00:10.1]}
54. Rg1 {[%clk 0:00:05.7]} 54... Ne6 {[%clk 0:00:05.9]} 55. Kxd3 {[%clk
0:00:06.1]} 55... b5 {[%clk 0:00:07.2]} 56. Kc2 {[%clk 0:00:04.4]} 56... Kc5
{[%clk 0:00:08]} 57. Kc3 {[%clk 0:00:05.5]} 57... Kd5 {[%clk 0:00:09]} 58. Kd3
{[%clk 0:00:07]} 58... Ke5 {[%clk 0:00:09.5]} 59. Re1+ {[%clk 0:00:08]} 59...
Kf5 {[%clk 0:00:10]} 60. Rc1 {[%clk 0:00:08.1]} 60... Kf4 {[%clk 0:00:07.4]} 61.
Rc6 {[%clk 0:00:03.4]} 61... Kf5 {[%clk 0:00:06.1]} 62. Rb6 {[%clk 0:00:03.3]}
62... b4 {[%clk 0:00:05.8]} 63. Rb5+ {[%clk 0:00:03.9]} 63... Kf4 {[%clk
0:00:07.2]} 64. Rxa5 {[%clk 0:00:04.5]} 64... Kxf3 {[%clk 0:00:08.6]} 65. Rf5+
{[%clk 0:00:05.3]} 65... Nf4+ {[%clk 0:00:09.6]} 66. Kd2 {[%clk 0:00:04.6]}
66... g4 {[%clk 0:00:11.2]} 67. Ke1 {[%clk 0:00:04.3]} 67... g3 {[%clk
0:00:12.6]} 68. Kf1 {[%clk 0:00:05.6]} 68... g2+ {[%clk 0:00:13.7]} 69. Kg1
{[%clk 0:00:06.9]} 69... Kg3 {[%clk 0:00:15.1]} 70. Rg5+ {[%clk 0:00:08.2]}
70... Kh4 {[%clk 0:00:16.2]} 71. Rb5 {[%clk 0:00:08.3]} 71... Kg3 {[%clk
0:00:17]} 72. Rg5+ {[%clk 0:00:09.4]} 72... Kf3 {[%clk 0:00:18.4]} 73. Rf5
{[%clk 0:00:09.5]} 73... Ke4 {[%clk 0:00:19.1]} 74. Rb5 {[%clk 0:00:09.4]} 74...
Kf3 {[%clk 0:00:20.3]} 75. Rf5 {[%clk 0:00:09.1]} 75... Ke4 {[%clk 0:00:20.5]}
76. Rb5 {[%clk 0:00:06.7]} 76... Kf3 {[%clk 0:00:21.6]} 77. Rf5 {[%clk
0:00:07.3]} 77... Kg4 {[%clk 0:00:20.7]} 78. Rf8 {[%clk 0:00:06.4]} 78... Kf3
{[%clk 0:00:15.9]} 79. Kh2 {[%clk 0:00:06]} 79... Ke4 {[%clk 0:00:15.7]} 80.
Re8+ {[%clk 0:00:05.7]} 80... Kf3 {[%clk 0:00:15.7]} 81. Rg8 {[%clk 0:00:05.9]}
81... Ke3 {[%clk 0:00:14.9]} 82. Kg1 {[%clk 0:00:05.2]} 82... Kf3 {[%clk
0:00:14]} 83. Rf8 {[%clk 0:00:05.8]} 83... Kg3 {[%clk 0:00:13.3]} 84. Rg8+
{[%clk 0:00:06.3]} 84... Kf3 {[%clk 0:00:14.5]} 85. Kh2 {[%clk 0:00:05.7]} 85...
Kf2 {[%clk 0:00:10.6]} 86. Rg4 {[%clk 0:00:03.2]} 86... Kf3 {[%clk 0:00:10.2]}
87. Rg3+ {[%clk 0:00:02.5]} 87... Kf2 {[%clk 0:00:08.4]} 88. Rg4 {[%clk
0:00:04.1]} 88... Kf3 {[%clk 0:00:07.9]} 89. Rg7 {[%clk 0:00:05.7]} 89... Kf2
{[%clk 0:00:08.4]} 90. Rg4 {[%clk 0:00:06.7]} 90... Kf3 {[%clk 0:00:09.7]} 91.
Rh4 {[%clk 0:00:08.3]} 91... Ke3 {[%clk 0:00:07.3]} 92. Rg4 {[%clk 0:00:07.7]}
92... Kf3 {[%clk 0:00:08]} 93. Rg8 {[%clk 0:00:08.3]} 93... Kf2 {[%clk
0:00:08.5]} 94. Rg4 {[%clk 0:00:06.4]} 94... Kf3 {[%clk 0:00:09.9]} 1/2-1/2